Cogmind - Beta 13 @@@ ROGUE MODE // 2024.03.10 @ 14:13:33 Player: Ferns Result: Destroyed by Y-45 Defender with Heavy Assault Rifle Performance ------------- Evolutions (2) 1000 Regions Visited (5) 1000 Robots Destroyed (54) 270 Value Destroyed (1491) 1491 Prototype IDs (7) 140 Alien Tech Used (0) 0 Bonus (420) 420 TOTAL SCORE: 4321 Bonus ------- High Alert Combat Kills 200 Follower Combat Kills 262 Friendly Fire -42 Cogmind --------- Core Integrity 0/550 Matter 295/300 Energy 100/100 System Corruption 4% Temperature Cool (9) Movement Flying (115) Ox1 Location -8/Materials Parts ------- > --- POWER (1) -------- (None) > --- PROPULSION (4) --- Cesium-ion Thruster > --- UTILITY (4) ------ Small Storage Unit System Shield > --- WEAPON (2) ------- Scythe > --- INVENTORY (8) ---- Light Nuclear Core Compact Matter Pod (150) Advanced Visual Processing Unit Improved Propulsion Shielding Hardlight Generator Hacking Suite Hacking Suite Improved Datajack Peak State ------------ > --- POWER ------------ Light Nuclear Core > --- PROPULSION ------- Aerolev Unit Aerolev Unit Aerolev Unit Aerolev Unit > --- UTILITY ---------- Small Storage Unit Improved Signal Interpreter System Shield System Restoration Module > --- WEAPON ----------- Shock Rifle Shock Rifle > --- INVENTORY -------- Light Deuterium Engine Light Deuterium Engine Aerolev Unit Improved Heat Sink Compact Matter Pod Seismic Detector Light Assault Rifle Mini Grenade Launcher [Rating: 38] Favorites ----------- Power Light Ion Engine Engine Light Ion Engine Power Core Light Nuclear Core Propulsion Compact Wheel Wheel Compact Wheel Hover Unit Aerolev Unit Flight Unit Flight Unit Utility Signal Interpreter Device Seismic Detector Storage Huge Storage Unit Processor Signal Interpreter Hackware System Shield Protection Improved Propulsion Shielding Weapon Heavy EM Pulse Gun Energy Gun Heavy EM Pulse Gun Ballistic Gun Gauss Rifle Launcher Mini Grenade Launcher Slashing Weapon Scythe Build | -11 -10 -10 -10 -9 -8 ------- Run | Yrd Mat Min Exi Min Mat Slots Evolved 4 | . . . . . 4 Power . | . . . . . . Propulsion 2 | . . . . . 2 Utility 2 | . . . . . 2 Weapon . | . . . . . . Parts Attached 60 | 7 10 3 . 3 37 Power 8 | 1 . 1 . 1 5 Engine 7 | 1 . 1 . 1 4 Core 1 | . . . . . 1 Reactor . | . . . . . . Propulsion 19 | 2 4 . . 1 12 Treads . | . . . . . . Leg . | . . . . . . Wheel 4 | 2 2 . . . . Hover 7 | . . . . 1 6 Flight 8 | . 2 . . . 6 Utility 18 | 2 3 1 . . 12 Device 9 | 1 . . . . 8 Storage 5 | 1 2 1 . . 1 Processor 2 | . 1 . . . 1 Hackware 1 | . . . . . 1 Protection 1 | . . . . . 1 Artifact . | . . . . . . Weapon 15 | 2 3 1 . 1 8 Energy Gun 9 | 2 3 1 . . 3 Energy Cannon . | . . . . . . Ballistic Gun 4 | . . . . 1 3 Ballistic Cannon . | . . . . . . Launcher 1 | . . . . . 1 Special Weapon . | . . . . . . Impact Weapon . | . . . . . . Slashing Weapon 1 | . . . . . 1 Piercing Weapon . | . . . . . . Special Melee Weapon . | . . . . . . Unidentified Prototypes 2 | . . . . . 2 Parts Lost 19 | . 1 3 . 1 14 Power 3 | . . 1 . . 2 Propulsion 7 | . . 1 . . 6 Utility 3 | . . . . . 3 Weapon 6 | . 1 1 . 1 3 Highest Loss Streak 7 | . 1 2 . 1 7 To Critical Strikes . | . . . . . . Average Slot Usage (%) 90 | . 99 84 85 96 87 Engine 11 | . 14 13 14 14 4 Core 1 | . . . . . 4 Wheel 13 | . 27 14 14 14 . Hover 7 | . . . . 11 23 Flight 1 | . . . . . 6 Device 3 | . 6 . . . 8 Storage 12 | . 14 14 14 14 9 Processor 11 | . 7 14 14 14 8 Hackware 1 | . . . . . 6 Energy Gun 21 | . 27 28 28 17 7 Ballistic Gun 1 | . . . . 9 3 Naked Turns . | . . . . . . Heaviest Build 97 | 14 51 89 89 97 18 Greatest Support 32 | 26 26 16 16 16 32 Greatest Overweight (x) 6 | . 1 5 5 6 1 Average Overweight (x) 1 | . . 3 5 5 . Largest Inventory Capacity 25 | 8 20 25 25 25 25 Average Capacity 17 | 7 15 22 25 25 8 Most Carried 25 | 5 14 19 19 25 23 Average Carried 13 | 2 10 16 19 21 7 Final Capacity 25 | 8 20 25 25 25 8 Final Carried 23 | 3 14 19 19 23 8 Class Distribution -------------------- 94% | Mutant 3% | Scavenger-Sprinter Dominant Class ---------------- Mutant | -10/Materials Mutant | -10/Mines Mutant | -10/Exiles Mutant | -9/Mines Mutant | -8/Materials Resources | -11 -10 -10 -10 -9 -8 ----------- Run | Yrd Mat Min Exi Min Mat Matter Collected 1094 | 179 186 30 . 37 662 Remotely . | . . . . . . Salvage Created 1808 | 113 358 214 . 42 1081 Parts 102 | 6 27 15 . 4 50 Haulers Intercepted 3 | . . . . . 3 Recyclers Shooed . | . . . . . . Parts Field Recycled . | . . . . . . Retrieved Matter . | . . . . . . Parts Self-Destructed . | . . . . . . Prevented . | . . . . . . Kills | -11 -10 -10 -10 -9 -8 ------- Run | Yrd Mat Min Exi Min Mat Combat Hostiles Destroyed 38 | . 8 8 . 1 21 Melee 1 | . . . . . 1 Guns 16 | . 8 5 . 1 2 AOE 21 | . . 3 . . 18 Classes Destroyed 13 | 2 4 . . . 7 Builder 1 | . . . . . 1 Tunneler 1 | 1 . . . . . Hauler 3 | . . . . . 3 Recycler 4 | 1 1 1 . . 1 Operator 2 | . 1 . . . 1 Watcher 5 | . 2 . . . 3 Swarmer 13 | . 5 8 . . . Cutter 3 | . . . . . 3 Grunt 18 | . 3 . . 1 14 Duelist 1 | . . . . . 1 Sentry 1 | . . . . . 1 Hunter 1 | . . . . . 1 Heavy 1 | . . . . . 1 Best Kill Streak 10 | 2 4 3 . 1 10 Combat Bots Only 9 | . 3 3 . 1 9 Max Kills in Single Turn 3 | 1 1 2 . 1 3 Gunslinging 1 | . . 1 . . . Exploded 3 | . . 2 . . 3 Melee 1 | . . . . . 1 Uniques/NPCs Destroyed . | . . . . . . Combat | -11 -10 -10 -10 -9 -8 -------- Run | Yrd Mat Min Exi Min Mat Hostile Shots Fired 169 | . 38 43 . . 88 Missed 46 | . 15 12 . . 19 Damage Taken 2171 | . 232 327 . 23 1589 Core 684 | . 37 81 . . 566 Absorbed by Shields . | . . . . . . Core Remaining (%) 76 | 100 . . . 52 . Volleys Fired 115 | 2 27 16 . 3 67 Largest 2 | 2 2 2 . 2 2 Hottest 100 | 90 90 90 . 73 100 Shots Fired 201 | 4 54 31 . 6 106 Gun 172 | 4 54 31 . 6 77 Cannon . | . . . . . . Launcher 29 | . . . . . 29 Special . | . . . . . . Kinetic 31 | . . . . 3 28 Thermal 4 | 4 . . . . . Explosive 29 | . . . . . 29 Electromagnetic 137 | . 54 31 . 3 49 Robot Hit Streak 10 | 3 6 4 . 5 10 Robot Miss Streak 6 | . 4 6 . 3 3 Penetration Max . | . . . . . . Secondary Targets 6 | . 3 2 . . 1 Max Gunslinging Chain 1 | . 1 1 . . 1 Shots Hit Robots 100 | 3 25 14 . 2 56 Core Hits 100 | 3 13 8 . 2 74 Critical Kills . | . . . . . . Critical Parts Destroyed . | . . . . . . Critical Strikes 4 | . 1 1 . . 2 Corrupt 2 | . 1 1 . . . Sever 2 | . . . . . 2 Melee Attacks 14 | . . . . . 14 Impact . | . . . . . . Slashing 14 | . . . . . 14 Piercing . | . . . . . . Sneak Attacks 1 | . . . . . 1 Combat Hostiles . | . . . . . . Follow-up Attacks . | . . . . . . Damage Inflicted 3712 | 37 460 402 . 31 2782 Guns 1379 | 37 418 207 . 31 686 Cannons . | . . . . . . Explosions 2013 | . 42 195 . . 1776 Melee 320 | . . . . . 320 Ramming . | . . . . . . Kinetic 105 | . . . . . 105 Thermal 274 | 37 42 195 . . . Explosive 1755 | . . . . . 1755 Electromagnetic 1258 | . 418 207 . 31 602 Impact . | . . . . . . Slashing 320 | . . . . . 320 Piercing . | . . . . . . Highest Corruption 4 | . . . . . 4 Average Corruption 3 | . . . . . 3 Corruption Purged 3 | . . . . . 3 Corruption Blocked . | . . . . . . Effects 17 | . . . . . 17 Message Errors 2 | . . . . . 2 Matter Fused 6 | . . . . . 6 Heat Flow Errors 3 | . . . . . 3 Data Loss (minor) 1 | . . . . . 1 Data Loss (major) 1 | . . . . . 1 Misfires 2 | . . . . . 2 Alerts 1 | . . . . . 1 Weapon Failures 1 | . . . . . 1 Overload Shots . | . . . . . . Overflow Damage 62 | . . 30 . . 32 Projectiles . | . . . . . . Explosions 51 | . . 30 . . 21 Melee 11 | . . . . . 11 Knockbacks . | . . . . . . Impact . | . . . . . . Kinetic . | . . . . . . Secondary . | . . . . . . Self-Inflicted Damage 282 | . . 95 . . 187 Shots 8 | . . 3 . . 5 Rammed . | . . . . . . Targets Rammed . | . . . . . . Kicked . | . . . . . . Crushed . | . . . . . . Highest Temperature 339 | 60 242 109 . 36 339 Average Temperature 76 | 33 64 44 . 19 97 Received Heat Transfer 561 | . 102 . . . 459 Effects 4 | . . . . . 4 Energy Bleed 1 | . . . . . 1 Interference 3 | . . . . . 3 Siege Activations . | . . . . . . Robots Corrupted . | . . . . . . Combat Hostiles . | . . . . . . Parts Fried 4 | . 2 . . . 2 Impact Corruptions . | . . . . . . Robots Melted . | . . . . . . Combat Hostiles . | . . . . . . Parts Melted 1 | . . 1 . . . Heat Transferred 349 | 99 50 200 . . . Parts Sabotaged . | . . . . . . Parts Stolen . | . . . . . . Parts Stripped . | . . . . . . Power Chain Reactions 4 | . 1 3 . . . Alert | -11 -10 -10 -10 -9 -8 ------- Run | Yrd Mat Min Exi Min Mat Peak Influence 798 | 10 263 226 . 56 798 Initial 58 | . 6 58 . . 21 Average 201 | 3 126 180 . 26 363 Maximum Alert Level 3 | . 1 1 . . 3 Low Security (%) 60 | 100 74 62 . 100 27 Level 1 26 | . 25 37 . . 33 Level 2 8 | . . . . . 25 Level 3 4 | . . . . . 13 Level 4 . | . . . . . . Level 5 . | . . . . . . High Security . | . . . . . . Max Security . | . . . . . . Squads Dispatched 7 | . . . . . 7 Investigation 1 | . . . . . 1 Extermination . | . . . . . . Reinforcement 6 | . . . . . 6 Assault . | . . . . . . Garrison . | . . . . . . Intercept . | . . . . . . Searches Triggered . | . . . . . . Construction Impeded 1 | . . . . . 1 Haulers Reinforced . | . . . . . . Active Scanning Responses . | . . . . . . Cargo Convoy Interrupts . | . . . . . . Stealth | -11 -10 -10 -10 -9 -8 --------- Run | Yrd Mat Min Exi Min Mat Distress Signals 4 | . 1 . . . 3 Communications Jammed . | . . . . . . Distress Signals . | . . . . . . Times Spotted 71 | . 16 9 . 2 44 Peak Tracking Total 11 | . 4 3 . 2 11 Tactical Retreats 4 | . 1 . . . 3 Traps | -11 -10 -10 -10 -9 -8 ------- Run | Yrd Mat Min Exi Min Mat Traps Triggered . | . . . . . . Indirectly . | . . . . . . Trap Hack Attempts . | . . . . . . Triggered . | . . . . . . Disarmed . | . . . . . . Reprogrammed . | . . . . . . Reused . | . . . . . . Traps Extracted . | . . . . . . Installed . | . . . . . . Triggered 1 | . . . . . 1 Machines | -11 -10 -10 -10 -9 -8 ---------- Run | Yrd Mat Min Exi Min Mat Machines Disabled 10 | . 2 . . . 8 Max in Single Turn 2 | . 1 . . . 2 Machines Repaired . | . . . . . . Machines Dismantled . | . . . . . . Machines Sabotaged . | . . . . . . Overloaded Fab Kills . | . . . . . . Hacking | -11 -10 -10 -10 -9 -8 --------- Run | Yrd Mat Min Exi Min Mat Machines Accessed 12 | . 5 . 1 1 5 Terminals 8 | . 4 . . . 4 Fabricators . | . . . . . . Repair Stations . | . . . . . . Recycling Units 1 | . 1 . . . . Scanalyzers 1 | . . . . . 1 Garrison Access . | . . . . . . Total Hacks 24 | . 10 . 1 1 12 Successful 17 | . 8 . 1 1 7 Failed 7 | . 2 . . . 5 Catastrophic 2 | . 1 . . . 1 Database Lockouts . | . . . . . . Manual 9 | . 3 . . . 6 Terminals 15 | . 8 . . . 7 Fabricators . | . . . . . . Repair Stations . | . . . . . . Recycling Units 2 | . 2 . . . . Scanalyzers 5 | . . . . . 5 Garrison Access . | . . . . . . Terminal Hacks 11 | . 6 . 1 1 3 Record 1 | . . . 1 . . Prototype ID Bank 3 | . 3 . . . . Open Door 1 | . . . . 1 . Branch Access Points 2 | . 1 . . . 1 Emergency Access Points 1 | . . . . . 1 Hauler Manifests 2 | . 2 . . . . Zone Layout 1 | . . . . . 1 Fabricator Hacks . | . . . . . . Repair Station Hacks . | . . . . . . Recycling Unit Hacks 1 | . 1 . . . . Retrieve Components 1 | . 1 . . . . Scanalyzer 4 | . . . . . 4 Insert Component 2 | . . . . . 2 Analyze 2 | . . . . . 2 Garrison Access Hacks . | . . . . . . Unauthorized Hacks 1 | . 1 . . . . Terminals 1 | . 1 . . . . Botnet 1 | . 1 . . . . Fabricators . | . . . . . . Repair Stations . | . . . . . . Recycling Units . | . . . . . . Scanalyzers . | . . . . . . Garrison Access . | . . . . . . Data Cores Recovered 1 | . 1 . . . . Used 1 | . 1 . . . . Hacking Detections 4 | . 2 . . . 2 Full Trace Events . | . . . . . . Feedback Events . | . . . . . . Feedback Blocked . | . . . . . . Robot Schematics Acquired . | . . . . . . Robots Built . | . . . . . . Authchips . | . . . . . . Time . | . . . . . . Total Robot Build Rating . | . . . . . . Part Schematics Acquired 2 | . . . . . 2 Parts Built . | . . . . . . Authchips . | . . . . . . Time . | . . . . . . Total Part Build Rating . | . . . . . . Parts Repaired . | . . . . . . Time . | . . . . . . Parts Recycled . | . . . . . . Recycled Matter . | . . . . . . Retrieved Matter . | . . . . . . Retrieved Components 7 | . 7 . . . . Parts Scanalyzed 2 | . . . . . 2 Part Schematics Acquired 2 | . . . . . 2 Parts Damaged 2 | . . . . . 2 Bothacking | -11 -10 -10 -10 -9 -8 ------------ Run | Yrd Mat Min Exi Min Mat Used RIF Installer . | . . . . . . Robots Hacked . | . . . . . . Non-combat . | . . . . . . Combat . | . . . . . . Robot Hacks Applied . | . . . . . . Relay Couplers Released . | . . . . . . Fabnet Peak Effective % . | . . . . . . Robots Rewired 2 | . . . 2 . . Allies Hacked . | . . . . . . Hacks Repelled . | . . . . . . Allies | -11 -10 -10 -10 -9 -8 -------- Run | Yrd Mat Min Exi Min Mat Total Allies 2 | . . . 2 . . Largest Group 2 | . . . 2 2 2 Highest-Rated Group 42 | . . . 42 42 42 Highest-Rated Ally 21 | . . . 21 21 21 Total Orders . | . . . . . . Ally Attacks 21 | . . . . 4 17 Total Damage 495 | . . . . 91 404 Kills 10 | . . . . 1 9 Allies Corrupted . | . . . . . . Allies Melted . | . . . . . . Intel | -11 -10 -10 -10 -9 -8 ------- Run | Yrd Mat Min Exi Min Mat Robot Analysis Total . | . . . . . . Derelict Logs Recovered 2 | . . 2 . . . Drone Launches . | . . . . . . Drone Recoveries . | . . . . . . Exploration | -11 -10 -10 -10 -9 -8 ------------- Run | Yrd Mat Min Exi Min Mat Turns Passed 3143 | 52 668 424 828 360 811 Spaces Moved 2409 | 37 512 229 460 186 985 Core 10 | 10 . . . . . Treads . | . . . . . . Legs . | . . . . . . Wheels 1414 | 27 512 229 460 186 . Hover 868 | . . . . . 868 Flight 117 | . . . . . 117 Fastest Speed 31 | 50 90 145 175 175 31 Average Speed 103 | 79 101 157 175 181 44 Slowest Speed 190 | 90 105 175 175 190 111 Overloaded Moves . | . . . . . . Propulsion Burnouts . | . . . . . . Robots Hopped 3 | . . . . . 3 Cave-ins Triggered . | . . . . . . Exploration Rate (%) 55 | 3 78 62 91 40 59 Regions Visited 5 Branch Regions 3 Pre-discovered Areas . | . . . . . . Known Exits Taken 4 | . 1 1 1 1 . Unknown Exits Taken 1 | 1 . . . . . Scrap Searched 2 | . . 2 . . . Spaces Dug . | . . . . . . Terrain Destroyed 116 | . . 13 . . 103 Melee . | . . . . . . Projectile . | . . . . . . AOE 116 | . . 13 . . 103 Terrain Rammed . | . . . . . . Walls Destroyed . | . . . . . . Machines Disabled . | . . . . . . Actions | -11 -10 -10 -10 -9 -8 --------- Run | Yrd Mat Min Exi Min Mat Total 2851 | 55 604 263 483 202 1244 Wait 99 | . 32 3 . 3 61 Move 2399 | 36 511 228 459 185 980 Hop 2 | . . . . . 2 Pick Up 92 | 10 18 10 . 7 47 Fast Attach . | . . . . . . Attach 33 | 7 2 2 . 2 20 Detach . | . . . . . . Swap 27 | . 8 1 . 1 17 Drop 46 | . 6 3 . 1 36 Fire 115 | 2 27 16 . 3 67 Melee 14 | . . . . . 14 Ram . | . . . . . . Kick . | . . . . . . Crush . | . . . . . . Escape Stasis . | . . . . . . Rewire 24 | . . . 24 . . Trap . | . . . . . . Miscellaneous . | . . . . . . Route ------- -11/Scrapyard -10/Materials (discovered 3 exits: *Mat x2 / *Min) -10/Mines (discovered 2 exits: *Mat / *Exi) -10/Exiles -9/Mines -8/Materials (discovered 1 exit: *Fac) History --------- Turn | Location | Event 9 | -11/Scrapyard | Discovered new exit (range 14) 53 | -11/Scrapyard | Entered Materials 224 | -10/Materials | Discovered new exit (range 15) 302 | -10/Materials | Build established: Mutant 362 | -10/Materials | Discovered new exit (range 16) 378 | -10/Materials | Identified exit to Materials 444 | -10/Materials | Identified exit to Mines 721 | -10/Materials | Entered Mines 801 | -10/Mines | Found a hidden stash of uninstalled traps 823 | -10/Mines | Learned Materials emergency access door positions 833 | -10/Mines | Discovered exit to Materials (range 6) 993 | -10/Mines | Learned location of 1 exit from Materials 1137 | -10/Mines | Deemed a non-threat by the Exiles lab entrance 1137 | -10/Mines | Discovered new exit (range 5) 1144 | -10/Mines | Identified exit to Exiles 1145 | -10/Mines | Entered Exiles 1145 | -10/Exiles | Found Exiles lab destroyed 1953 | -10/Exiles | Discovered new exit (range 12) 1971 | -10/Exiles | Identified exit to Mines 1973 | -10/Exiles | Entered Mines 1973 | -9/Mines | Accompanied by 2 allies 2043 | -9/Mines | Met a Derelict who couldn't figure out how to use a Trap Extractor 2317 | -9/Mines | Discovered new exit (range 8) 2331 | -9/Mines | Identified exit to Materials 2333 | -9/Mines | Entered Materials 2333 | -8/Materials | Accompanied by 2 allies 2333 | -8/Materials | Evolved 4 slots: Propulsion x2, Utility x2 2334 | -8/Materials | Identified exit to Factory 2863 | -8/Materials | Lost 7 parts (1p3n1u2w) 2869 | -8/Materials | Destroyed 9 combat bots 3018 | -8/Materials | Core integrity fell below 50% 3138 | -8/Materials | Core integrity fell below 20% 3144 | -8/Materials | Destroyed by Y-45 Defender with Heavy Assault Rifle Last Messages --------------- W-25 Informer sends out distress signal. System corrupted: Matter fused (-6). L-31 Rogue Imp. Ion Engine severed. Aerolev Unit destroyed. Cesium-ion Thruster destroyed. Critical hit (Burn: +37). G-47 Trooper destroyed. Lgt. Deuterium Engine destroyed. Destroyed Lgt. Deuterium Engine. Imp. Sensor Array destroyed. Destroyed Imp. Sensor Array. Imp. Hover Unit destroyed. Imp. Signal Interpreter destroyed. L-31 Rogue destroyed. G-47 Trooper destroyed. G-50 Soldier destroyed. Mni. Grenade Launcher destroyed. Destroyed Mni. Grenade Launcher. Destroyed Lgt. Ion Engine. K-01 Serf collects debris. Map ----- +----------------------------------------------------+ | ???????????????????????### # # """ #???#????? | | ????????????????????????# # # # """ #????????? | | ????????????????????????## ## # #????????? | | ????????????????????????## #### #########????????? | | ????????????????????????# # #??#??????? | | ????????????????????????+^ *# #? #??????? | | ????????????????????????# [ # #? #??????? | | ????????????????????????# [%# #? #??????? | | ????????????????????????# !=# #? #??????? | | ????????????????????????# ###+##### #??????? | | ????????????????????????# #??????? | | ????????????????????????# #??????? | | ????????????????????????# ######## #??????? | | ????????????????????????# #??????## #??????? | | ????????????????????????# #??????## #??????? | | ????????????????????????# #??????#" ##+##### | | ????????????????????????#=#??????#T [ | | ?????????????????######## #??????#" [ ##### | | ?????????????????# #Y#??????## #???? | | ?????????????????#""" [ # #???????# ! #???? | | ?????????????????#""" + #???????# #???? | | ?????????????????#""" k # #???????# #???? | | ?????????????????# Y# ###?????# ??? | | ?????????????????# "T" Y #?????# ##### ? | | ?????????????????###### #?????#+????? | | ??????????????????????# [@ #???????????? | | ?????????????????????# *%%g #??????????? ##### | | ????????????????????# !%[%! #?????????? ???? | | ????????????????????# rg [ #??????????? ??? | | ????????????????????# #??????????? ?? | | ????????????????????# #??????????? ???? | | ????????????????????# #??????????????????? | | ????????????????????# #??????????????????? | | ????????????????????+ #??????????????????? | | ????????????????????# #??????????????????? | | ????????????????????######+####??????????????????? | | ?????????????????????????????????????????????????? | | ????????????????????????????????????????+????????? | | ??????????????????????????+??????????????????????? | | ?????????????????????????????????????????????????? | | ?????????????????????????????????????????????????? | | ?????????????????????????????????????????????????? | | ?????????????????????????????????????????????????? | | ?????????????????????????????????????????????????? | | ?????????????????????????????????????????????????? | | ?????????????????????????????????????????????????? | | ?????????????????????????????????????????????????? | | ?????????????????????????????????????????????????? | | ?????????????????????????????????????????????????? | | ?????????????????????????????????????????????????? | +----------------------------------------------------+ Best States ------------- Heat Dissipation 45 Energy Generation 14 Energy Capacity 265 Matter Stores 300 Matter Capacity 300 Sight Range 16 Robot Scan Range 15 Terrain Scan Density 10 Propulsion Shielding 66 Evasion (%) 63 Defensive Hacking 10 Item Schematics ----------------- Aerolev Unit | -8/Materials | Scanalyzed System Restoration Module | -8/Materials | Scanalyzed Robot Schematics ------------------ None Fabricated ------------ Nothing Alien Tech Used ----------------- None Achievements -------------- A New Friend Dynamic Key Challenges ------------ None Game ------ Seed SystemThermoelectricWheel Manual? 0 Play Time 00:34:41 Cumulative 5.8 hours Start 2024.03.10 @ 00:27:20 End 2024.03.10 @ 14:13:33 Sessions 3 Manual Loads 0 Difficulty Rogue Special Mode None Game No. 7 Rogue 6 Adventurer 1 Explorer 0 Win Type - Total 0 Types 0/0/0/0/0/0/0/0/0 Lore% 7 Gallery% 16 Achievement% 16 Wizard Run 0 Options --------- Layout 2 ASCII 0 Keyboard 0 Movement Mouse Keybinds 0 Fullscreen 2 Font 32/SmallcapsGlow Map View 50x44 Zoom Use 0% Tactical HUD 0 Map Filters NONE Filters NONE Steam 1 RUN: 6c7d3e7d-64ad-4945-a115-44ee4b7d6458